fUST/lending_fUST_20250122
["ID","MTS","AMOUNT","RATE_DAILY","PERIOD"]
[349927541,1737511839769,-500.0,0.00021917,3]
[349927542,1737511839779,-500.0,0.00021917,3]
[349927543,1737511839789,-729.47,0.00021917,3]
[349927545,1737511839799,-500.0,0.00021917,3]
[349927547,1737511839808,-500.0,0.00021917,3]
[349927548,1737511839818,-574.22,0.00021917,3]
[349927549,1737511839827,-629.0,0.00021917,3]
[349927550,1737511839837,-500.0,0.00021917,3]
[349927551,1737511839846,-500.0,0.00021917,3]
[349927552,1737511839856,-1069.17,0.00021917,3]
[349927553,1737511839866,-658.07,0.00021917,3]
[349927554,1737511839876,-982.74,0.00021917,3]
[349927555,1737511839886,-500.0,0.00021917,3]
[349927556,1737511839903,-500.0,0.00021917,3]
[349927557,1737511839915,-500.0,0.00021917,3]
[349927558,1737511839925,-591.41,0.00021917,3]
[349927559,1737511839936,-500.0,0.00021917,3]
[349927560,1737511839947,-500.0,0.00021917,3]
[349927561,1737511839959,-550.78,0.00021917,3]
[349927563,1737511839969,-500.0,0.00021917,3]
[349927564,1737511839978,-500.0,0.00021917,3]
[349927566,1737511839990,-2543.27,0.00021917,3]
[349927567,1737511840000,-500.0,0.00021917,3]
[349927568,1737511840010,-859.29,0.00021917,3]
[349927569,1737511840020,-885.53,0.00021917,3]
[349927570,1737511840030,-500.0,0.00021917,3]
[349927571,1737511840041,-500.0,0.00021917,3]
[349927572,1737511840053,-500.0,0.00021917,3]
[349927573,1737511840063,-500.0,0.00021917,3]
[349927574,1737511840073,-500.0,0.00021917,3]
[349927575,1737511840082,-500.0,0.00021917,3]
[349927576,1737511840092,-1064.03,0.00021917,3]
[349927577,1737511840102,-503.34616561,0.00021917,3]
[349927578,1737511840111,-500.0,0.00021917,3]
[349927579,1737511840121,-500.0,0.00021917,3]
[349927580,1737511840130,-500.0,0.00021917,3]
[349927581,1737511840140,-500.0,0.00021917,3]
[349927582,1737511840149,-710.87,0.00021917,3]
[349927583,1737511840163,-2338.62,0.00021917,3]
[349927584,1737511840173,-500.0,0.00021917,3]
[349927585,1737511840183,-500.0,0.00021917,3]
[349927586,1737511840193,-2105.35,0.00021917,3]
[349927587,1737511840203,-521.50446004,0.00021917,3]
[349927588,1737511840212,-500.0,0.00021917,3]
[349927589,1737511840222,-500.0,0.00021917,3]
[349927590,1737511840235,-321.01994731,0.00021917,3]
[349927591,1737511840244,-226.07548858,0.00021917,3]
[349927592,1737511840254,-500.0,0.00021917,3]
[349927593,1737511840271,-500.0,0.00021917,3]
[349927594,1737511840281,-1725.29,0.00021917,3]
[349927595,1737511840290,-3418.12,0.00021917,3]
[349927596,1737511840300,-500.0,0.00021917,3]
[349927597,1737511840310,-500.0,0.00021917,3]
[349927598,1737511840320,-500.0,0.00021917,3]
[349927599,1737511840330,-500.0,0.00021917,3]
[349927600,1737511840339,-256.9492013,0.00021917,2]
[349927601,1737511840476,-1319.3907987,0.00021917,2]
[349927602,1737511840486,-1648.53,0.00021917,3]
[349927603,1737511840495,-10276.91667059,0.00021917,3]
[349927604,1737511840586,-115.53332941,0.00021917,3]
[349927605,1737511840596,-500.0,0.00021917,3]
[349927606,1737511840606,-500.0,0.00021917,3]
[349927607,1737511840615,-658.03,0.00021917,3]
[349927608,1737511840624,-911.95,0.00021917,3]
[349927609,1737511840633,-629.90706236,0.00021917,3]
[349927610,1737511840643,-500.0,0.00021917,3]
[349927611,1737511840652,-500.0,0.00021917,3]
[349927612,1737511840661,-71.57747573,0.00021917,3]
[349927613,1737511840683,-428.42252427,0.00021917,3]
[349927614,1737511840692,-500.0,0.00021917,3]
[349927615,1737511840702,-500.0,0.00021917,3]
[349927616,1737511840713,-500.0,0.00021917,3]
[349927617,1737511840722,-666.1,0.00021917,3]
[349927618,1737511840731,-500.0,0.00021917,3]
[349927619,1737511840740,-14243.12022052,0.00021917,3]
[349927620,1737511840752,-4453.67940508,0.00021917,3]
[349927621,1737511841217,-219.40545849,0.0002141,2]
[349927622,1737511841227,-1215.03083538,0.000219,3]
[349927638,1737511843095,-3925.91632643,0.000219,3]
[349927699,1737511846081,-219.40545845,0.00021819,2]
[349927701,1737511846091,-101.35517683,0.000219,3]
[349927703,1737511846100,-26900.3403744,0.00021917,3]
[349927705,1737511846110,-2483.41,0.00021917,3]
[349927707,1737511846119,-500.0,0.00021917,3]
[349927709,1737511846129,-345.64185442,0.00021917,3]
[349927711,1737511846138,-500.0,0.00021917,3]
[349927712,1737511846148,-1316.39,0.00021917,3]
[349927714,1737511846160,-511.8164647,0.00021917,3]
[349927716,1737511846169,-1423.33,0.00021917,3]
[349927718,1737511846179,-677.72,0.00021917,3]
[349927720,1737511846188,-516.41,0.00021917,3]
[349927722,1737511846199,-507.35128457,0.00021917,3]
[349927724,1737511846208,-500.0,0.00021917,3]
[349927727,1737511846217,-500.0,0.00021917,3]
[349927737,1737511846303,-500.0,0.00021917,3]
[349927739,1737511846312,-3141.21,0.00021917,3]
[349927741,1737511846322,-500.0,0.00021917,3]
[349927743,1737511846332,-500.0,0.00021917,3]
[349927745,1737511846341,-500.0,0.00021917,3]
[349927747,1737511846350,-500.0,0.00021917,3]
[349927749,1737511846360,-500.0,0.00021917,3]
[349927751,1737511846369,-500.0,0.00021917,3]
[349927753,1737511846378,-843.17,0.00021917,3]
[349927755,1737511846388,-500.0,0.00021917,3]
[349927757,1737511846397,-500.0,0.00021917,3]
[349927759,1737511846406,-500.0,0.00021917,3]
[349927761,1737511846416,-500.0,0.00021917,3]
[349927763,1737511846428,-502.85363731,0.00021917,3]
[349927765,1737511846437,-500.0,0.00021917,3]
[349927767,1737511846446,-500.0,0.00021917,3]
[349927769,1737511846455,-104.25824608,0.00021917,3]
[349927776,1737511846515,-400.01503182,0.00021917,3]
[349927778,1737511846524,-500.0,0.00021917,3]
[349927780,1737511846534,-500.0,0.00021917,3]
[349927782,1737511846544,-198.11962332,0.00021917,3]
[349927784,1737511846553,-677.65,0.00021917,3]
[349927786,1737511846563,-525.5,0.00021917,3]
[349927789,1737511846583,-500.0,0.00021917,3]
[349927792,1737511846595,-500.0,0.00021917,3]
[349927794,1737511846605,-740.9409874,0.00021917,3]
[349928239,1737511923266,196.91241669,0.00019927,2]
[349928241,1737511957973,162.818535,0.00013973,2]
[349928242,1737512246560,150.0,0.00019817,2]
[349928244,1737512547941,150.0,0.00019817,2]
[349928253,1737512804860,325.5321057,0.0002,2]
[349928267,1737512932133,162.818535,0.00013973,2]
[349928307,1737513032438,-176.9066559,0.0002022,2]
[349928308,1737513032449,-150.24525927,0.000203,2]
[349928309,1737513032458,-197.9141606,0.00020533,2]
[349928310,1737513032469,-221.015,0.0002082,2]
[349928311,1737513032479,-300.0,0.00020866,2]
[349928312,1737513032489,-1285.08773001,0.00020867,2]
[349928357,1737513038214,-8243.63075679,0.00020867,2]
[349928358,1737513038269,-277.46854865,0.00020867,2]
[349928359,1737513038281,-15093.81296455,0.00020867,2]
[349928360,1737513038291,-151.0,0.0002128,2]
[349928361,1737513038300,-395.0,0.00021602,2]
[349928362,1737513038309,-152.40446343,0.00021646,2]
[349928363,1737513038319,-4855.60990692,0.00021658,2]
[349928364,1737513038330,-1033.58530844,0.00021658,2]
[349928365,1737513038353,-3810.11844472,0.00021658,2]
[349928366,1737513038362,-198.2849517,0.00021697,2]
[349928367,1737513038371,-320.6360393,0.00021701,2]
[349928368,1737513038380,-1000.0,0.00021748,2]
[349928369,1737513038390,-1000.0,0.00021796,2]
[349928370,1737513038399,-189.282432,0.00021801,2]
[349928371,1737513038408,-154.75807233,0.00021817,2]
[349928372,1737513038417,-168.88870149,0.00021817,2]
[349928373,1737513038426,-152.0,0.00021839,2]
[349928374,1737513038436,-1208.33452922,0.00021842,2]
[349928375,1737513038445,-1000.0,0.00021845,2]
[349928376,1737513038455,-1000.0,0.00021852,2]
[349928377,1737513038464,-1000.0,0.0002186,2]
[349928378,1737513038473,-198.0,0.0002188,2]
[349928379,1737513038581,-168.88870147,0.00021886,2]
[349928380,1737513038591,-150.163487,0.000219,2]
[349928381,1737513038602,-55.52959786,0.000219,2]
[349928382,1737513038613,-531.96040214,0.000219,2]
[349928383,1737513038623,-73.09720476,0.000219,3]
[349928384,1737513038634,-978.75395275,0.000219,3]
[349928385,1737513038644,-2489.515304,0.000219,3]
[349928386,1737513038656,-773.5743532,0.000219,3]
[349928387,1737513038667,-413.300005,0.000219,3]
[349928388,1737513038679,-575.6874976,0.000219,3]
[349928389,1737513038688,-161.16,0.00021916,2]
[349928390,1737513038697,-500.0,0.00021916,2]
[349928391,1737513038707,-420.85583496,0.00021916,2]
[349928392,1737513038716,-422.42770525,0.00021916,2]
[349929120,1737514232836,-300.0,0.0002073,2]
[349929121,1737514232847,-12801.4660192,0.00020731,2]
[349929122,1737514232857,-211.431,0.0002082,2]
[349929123,1737514232867,-191.58,0.00021,2]
[349929124,1737514232877,-500.0,0.00021054,7]
[349929125,1737514232886,-300.22,0.00021054,7]
[349929126,1737514232897,-339.0,0.000214,9]
[349929127,1737514232907,-150.636,0.00021693,2]
[349929128,1737514232916,-2073.736,0.00021693,2]
[349929129,1737514232926,-1137.23098043,0.00021693,2]
[349929130,1737514236151,173.7143743,0.00019593,2]
[349929132,1737514238358,-1190.36701957,0.00021693,2]
[349929133,1737514238368,-150.0,0.00021693,2]
[349929134,1737514238377,-159.35,0.00021697,2]
[349929135,1737514238386,-198.2849518,0.00021697,2]
[349929136,1737514238396,-164.858,0.00021697,2]
[349929137,1737514238406,-384.61116469,0.000217,2]
[349929138,1737514238416,-152.0,0.00021775,2]
[349929139,1737514238425,-1000.0,0.00021786,2]
[349929140,1737514238435,-152.0,0.00021795,2]
[349929141,1737514238444,-152.0,0.00021795,2]
[349929142,1737514238453,-152.0,0.00021795,2]
[349929143,1737514238464,-152.0,0.00021795,2]
[349929144,1737514238475,-152.0,0.00021795,2]
[349929145,1737514238484,-207.28,0.00021795,2]
[349929146,1737514238494,-158.24,0.00021795,2]
[349929147,1737514238503,-152.0,0.00021795,2]
[349929148,1737514238514,-152.0,0.00021795,2]
[349929149,1737514238523,-152.0,0.00021795,2]
[349929150,1737514238533,-152.0,0.00021795,2]
[349929151,1737514238543,-152.0,0.00021795,2]
[349929152,1737514238553,-152.0,0.00021795,2]
[349929153,1737514238563,-152.0,0.00021795,2]
[349929154,1737514238572,-152.0,0.00021795,2]
[349929155,1737514238582,-152.0,0.00021795,2]
[349929156,1737514238592,-152.0,0.00021795,2]
[349929157,1737514238607,-152.0,0.00021795,2]
[349929158,1737514238618,-152.0,0.00021795,2]
[349929159,1737514238634,-152.0,0.00021795,2]
[349929160,1737514238651,-152.0,0.00021795,2]
[349929161,1737514238661,-152.0,0.00021795,2]
[349929162,1737514238671,-152.0,0.00021795,2]
[349929163,1737514238682,-152.0,0.00021795,2]
[349929164,1737514238693,-152.0,0.00021795,2]
[349929165,1737514238703,-152.0,0.00021795,2]
[349929166,1737514238715,-152.0,0.00021795,2]
[349929167,1737514238727,-270.0,0.00021795,2]
[349929168,1737514238737,-353.8915511,0.000218,2]
[349929169,1737514238747,-353.8915511,0.000218,2]
[349929170,1737514238759,-281.5162514,0.000218,2]
[349929171,1737514238769,-353.8915511,0.000218,2]
[349929172,1737514238779,-153.0,0.000218,2]
[349929173,1737514238789,-434.0741974,0.000218,2]
[349929174,1737514238798,-154.1761492,0.000218,2]
[349929175,1737514238808,-436.5842976,0.000218,2]
[349929176,1737514238818,-215.2533166,0.000218,2]
[349929177,1737514238827,-353.8915511,0.000218,2]
[349929178,1737514238836,-154.1761492,0.000218,2]
[349929179,1737514238846,-153.0,0.000218,2]
[349929180,1737514238855,-215.2533166,0.000218,2]
[349929181,1737514238866,-353.8915511,0.000218,2]
[349929182,1737514238875,-154.1761492,0.000218,2]
[349929183,1737514238885,-153.0,0.000218,2]
[349929184,1737514238895,-154.1761492,0.000218,2]
[349929185,1737514238905,-353.8915511,0.000218,2]
[349929186,1737514238915,-153.0,0.000218,2]
[349929187,1737514238925,-153.0,0.000218,2]
[349929188,1737514238934,-154.1761492,0.000218,2]
[349929189,1737514238944,-353.8915511,0.000218,2]
[349929190,1737514238956,-353.8915511,0.000218,2]
[349929191,1737514238966,-154.1761492,0.000218,2]
[349929192,1737514239072,-353.8915511,0.000218,2]
[349929193,1737514239082,-154.3805447,0.000218,2]
[349929194,1737514239093,-353.8915511,0.000218,2]
[349929195,1737514239103,-446.7105669,0.000218,2]
[349929196,1737514239113,-154.1761492,0.000218,2]
[349929197,1737514239122,-418.0021329,0.000218,2]
[349929198,1737514239132,-288.6899713,0.000218,2]
[349929199,1737514239142,-154.1761492,0.000218,2]
[349929200,1737514239152,-353.7597518,0.000218,2]
[349929201,1737514239162,-154.1761492,0.000218,2]
[349929202,1737514239171,-153.0,0.000218,2]
[349929203,1737514239181,-167.55548378,0.000218,2]
[349929204,1737514239190,-162.81720109,0.00021817,7]
[349929205,1737514239203,-33881.95442106,0.00021817,3]
[349929206,1737514239213,-167.55548377,0.00021817,2]
[349929207,1737514239223,-1000.0,0.00021825,2]
[349929208,1737514239233,-1000.0,0.00021861,2]
[349929209,1737514239243,-1000.0,0.00021869,2]
[349929210,1737514239252,-390.42264389,0.000219,5]
[349929211,1737514239261,-788.04243011,0.000219,2]
[349929212,1737514239271,-788.04243009,0.000219,2]
[349929213,1737514239280,-788.04243009,0.000219,2]
[349929214,1737514239290,-788.04243009,0.000219,2]
[349929215,1737514239299,-528.74,0.000219,2]
[349929216,1737514239309,-280.0,0.000219,2]
[349929217,1737514239319,-150.298728,0.000219,2]
[349929218,1737514239328,-39299.0,0.000219,2]
[349929219,1737514239338,-622.0,0.000219,2]
[349929220,1737514239347,-5238.7487114,0.000219,3]
[349929221,1737514239357,-77.57229475,0.00021916,2]
[349929222,1737514239366,-500.0,0.00021916,2]
[349929223,1737514239377,-500.0,0.00021916,2]
[349929224,1737514239386,-500.0,0.00021916,2]
[349929225,1737514239396,-500.0,0.00021916,2]
[349929226,1737514239406,-500.0,0.00021916,2]
[349929227,1737514239416,-500.0,0.00021916,2]
[349929228,1737514239425,-500.0,0.00021916,2]
[349929229,1737514239435,-500.0,0.00021916,2]
[349929230,1737514239444,-500.0,0.00021916,2]
[349929231,1737514239454,-500.0,0.00021916,2]
[349929232,1737514239465,-500.0,0.00021916,2]
[349929233,1737514239475,-500.0,0.00021916,2]
[349929234,1737514239484,-500.0,0.00021916,2]
[349929235,1737514239493,-240.56273825,0.00021916,2]
[349929236,1737514239503,-500.0,0.00021916,2]
[349929237,1737514239519,-500.0,0.00021916,2]
[349929238,1737514239529,-500.0,0.00021916,2]
[349929239,1737514239539,-500.0,0.00021916,2]
[349929240,1737514239549,-500.0,0.00021916,2]
[349929241,1737514239559,-500.0,0.00021916,2]
[349929242,1737514239568,-500.0,0.00021916,2]
[349929243,1737514239579,-500.0,0.00021916,2]
[349929244,1737514239588,-500.0,0.00021916,2]
[349929245,1737514239598,-500.0,0.00021916,2]
[349929246,1737514239607,-500.0,0.00021916,2]
[349929247,1737514239617,-500.0,0.00021916,2]
[349929248,1737514239627,-500.0,0.00021916,2]
[349929249,1737514239636,-268.2324444,0.00021916,2]
[349929250,1737514239646,-500.0,0.00021916,2]
[349929251,1737514239655,-500.0,0.00021916,2]
[349929252,1737514239664,-500.0,0.00021916,2]
[349929253,1737514239675,-500.0,0.00021916,2]
[349929254,1737514239686,-500.0,0.00021916,2]
[349929255,1737514239697,-519.06120247,0.00021916,2]
[349929256,1737514239707,-500.0,0.00021916,2]
[349929257,1737514239719,-560.87410358,0.00021916,2]
[349929258,1737514239729,-538.69562296,0.00021916,2]
[349929259,1737514239739,-500.0,0.00021916,2]
[349929260,1737514239749,-380.08999096,0.00021916,2]
[349929261,1737514239759,-473.27218242,0.00021916,2]
[349929262,1737514239768,-500.0,0.00021916,2]
[349929263,1737514239782,-500.0,0.00021916,2]
[349929264,1737514239795,-500.0,0.00021916,2]
[349929265,1737514239804,-500.0,0.00021916,2]
[349929266,1737514239814,-225.50813825,0.00021916,2]
[349929267,1737514239823,-195.51725856,0.00021916,2]
[349929268,1737514239833,-466.10862781,0.00021916,2]
[349929269,1737514239851,-183.83501144,0.00021916,2]
[349929270,1737514239862,-1204.44,0.00021916,2]
[349929271,1737514239872,-151.225,0.00021916,2]
[349929272,1737514239881,-500.563,0.00021916,2]
[349929273,1737514239891,-282.33633021,0.00021916,2]
[349929274,1737514239900,-506.36258505,0.00021916,2]
[349929275,1737514239910,-151.0,0.00021916,2]
[349929276,1737514239919,-151.0,0.00021916,2]
[349929277,1737514239929,-257.53782137,0.00021916,2]
[349929278,1737514239939,-500.0,0.00021916,2]
[349929279,1737514239952,-375.36699605,0.00021916,2]
[349929280,1737514239962,-500.0,0.00021916,2]
[349929281,1737514239972,-500.0,0.00021916,2]
[349929282,1737514239981,-500.0,0.00021916,2]
[349929283,1737514239992,-500.0,0.00021916,2]
[349929284,1737514240002,-160.0,0.00021916,2]
[349929285,1737514240012,-340.273,0.00021917,2]
[349929286,1737514240022,-500.0,0.00021917,3]
[349929287,1737514240033,-500.0,0.00021917,3]
[349929288,1737514240043,-535.31133201,0.00021917,3]
[349929289,1737514240052,-589.69897833,0.00021917,3]
[349929290,1737514240061,-500.0,0.00021917,3]
[349929291,1737514240070,-503.64698572,0.00021917,3]
[349929292,1737514240080,-500.0,0.00021917,3]
[349929293,1737514240090,-500.0,0.00021917,3]
[349929294,1737514240100,-500.0,0.00021917,3]
[349929295,1737514240109,-500.0,0.00021917,3]
[349929296,1737514240119,-505.29141872,0.00021917,3]
[349929297,1737514240129,-500.0,0.00021917,3]
[349929298,1737514240139,-381.10321783,0.00021917,3]
[349929300,1737514240148,-276.00452047,0.00021917,3]
[349929302,1737514240157,-500.0,0.00021917,3]
[349929304,1737514240167,-523.83348344,0.00021917,3]
[349929306,1737514240176,-500.0,0.00021917,3]
[349929308,1737514240185,-500.0,0.00021917,3]
[349929310,1737514240195,-503.30959896,0.00021917,3]
[349929312,1737514240204,-524.1658478,0.00021917,3]
[349929313,1737514240213,-186.40001634,0.00021917,3]
[349929315,1737514240223,-500.0,0.00021917,3]
[349929317,1737514240232,-500.0,0.00021917,3]
[349929319,1737514240242,-500.0,0.00021917,3]
[349929321,1737514240251,-706.51,0.00021917,3]
[349929323,1737514240260,-1058.83,0.00021917,3]
[349929325,1737514240270,-500.0,0.00021917,3]
[349929327,1737514240280,-194.39516661,0.00021917,3]
[349929329,1737514240289,-570.92788731,0.00021917,3]
[349929331,1737514240299,-500.0,0.00021917,3]
[349929333,1737514240308,-340.48061002,0.00021917,3]
[349929335,1737514240318,-500.0,0.00021917,3]
[349929337,1737514240328,-500.0,0.00021917,3]
[349929339,1737514240338,-500.0,0.00021917,3]
[349929341,1737514240348,-531.28,0.00021917,3]
[349929342,1737514240357,-500.0,0.00021917,3]
[349929344,1737514240367,-500.0,0.00021917,3]
[349929346,1737514240377,-500.0,0.00021917,3]
[349929348,1737514240387,-500.0,0.00021917,3]
[349929350,1737514240397,-1134.66,0.00021917,3]
[349929353,1737514240407,-510.39203706,0.00021917,3]
[349929355,1737514240417,-500.0,0.00021917,3]
[349929357,1737514240427,-510.44802315,0.00021917,3]
[349929359,1737514240436,-500.0,0.00021917,3]
[349929361,1737514240446,-500.0,0.00021917,3]
[349929362,1737514240456,-500.0,0.00021917,3]
[349929365,1737514240470,-653.53,0.00021917,3]
[349929366,1737514240481,-500.0,0.00021917,3]
[349929368,1737514240492,-500.0,0.00021917,3]
[349929370,1737514240503,-593.66,0.00021917,3]
[349929372,1737514240512,-500.0,0.00021917,3]
[349929374,1737514240522,-500.0,0.00021917,3]
[349929376,1737514240532,-503.86694143,0.00021917,3]
[349929378,1737514240541,-500.0,0.00021917,3]
[349929380,1737514240551,-724.06,0.00021917,3]
[349929382,1737514240561,-503.8643759,0.00021917,3]
[349929384,1737514240571,-500.0,0.00021917,3]
[349929386,1737514240580,-500.0,0.00021917,3]
[349929388,1737514240590,-500.0,0.00021917,3]
[349929391,1737514240673,-500.0,0.00021917,3]
[349929392,1737514240683,-502.71037157,0.00021917,3]
[349929393,1737514240692,-500.0,0.00021917,3]
[349929394,1737514240702,-804.39,0.00021917,3]
[349929395,1737514240715,-500.0,0.00021917,3]
[349929396,1737514240725,-500.0,0.00021917,3]
[349929397,1737514240734,-502.37332436,0.00021917,3]
[349929398,1737514240744,-500.0,0.00021917,3]
[349929399,1737514240753,-500.0,0.00021917,3]
[349929400,1737514240763,-502.0914636,0.00021917,3]
[349929401,1737514240772,-500.0,0.00021917,3]
[349929402,1737514240781,-156.04474989,0.00021917,3]
[349929403,1737514240791,-500.0,0.00021917,3]
[349929404,1737514240800,-502.73433797,0.00021917,3]
[349929405,1737514240809,-500.0,0.00021917,3]
[349929406,1737514240821,-270.51526298,0.00021917,3]
[349929407,1737514240831,-500.0,0.00021917,3]
[349929408,1737514240840,-500.0,0.00021917,3]
[349929409,1737514240850,-444.79791814,0.00021917,3]
[349929410,1737514240859,-500.0,0.00021917,3]
[349929411,1737514240869,-500.0,0.00021917,3]
[349929412,1737514240878,-500.0,0.00021917,3]
[349929413,1737514240888,-537.0,0.00021917,3]
[349929414,1737514240897,-500.0,0.00021917,3]
[349929415,1737514240907,-500.0,0.00021917,3]
[349929416,1737514240916,-502.1701931,0.00021917,3]
[349929417,1737514240926,-502.43710037,0.00021917,3]
[349929418,1737514240935,-500.0,0.00021917,3]
[349929419,1737514240945,-775.45,0.00021917,3]
[349929420,1737514240958,-1062.75,0.00021917,3]
[349929421,1737514240970,-1065.13,0.00021917,3]
[349929422,1737514240979,-500.0,0.00021917,3]
[349929423,1737514240989,-500.0,0.00021917,3]
[349929424,1737514240999,-618.04,0.00021917,3]
[349929425,1737514241008,-500.0,0.00021917,3]
[349929426,1737514241018,-500.0,0.00021917,3]
[349929427,1737514241029,-500.0,0.00021917,3]
[349929428,1737514241038,-517.07786032,0.00021917,3]
[349929429,1737514241048,-500.0,0.00021917,3]
[349929430,1737514241057,-500.0,0.00021917,3]
[349929431,1737514241067,-1038.26,0.00021917,3]
[349929432,1737514241076,-151.0,0.00021917,2]
[349929433,1737514241086,-151.0,0.00021917,2]
[349929434,1737514241094,-284.864776,0.00021917,2]
[349929435,1737514241105,-294.38189586,0.00021917,3]
[349929436,1737514241114,-500.0,0.00021917,3]
[349929437,1737514241125,-152.428774,0.00021917,2]
[349929438,1737514241135,-500.0,0.00021917,3]
[349929439,1737514241147,-514.75426526,0.00021917,3]
[349929440,1737514241157,-500.0,0.00021917,3]
[349929441,1737514241166,-150.0,0.00021917,3]
[349929442,1737514241176,-517.32333556,0.00021917,3]
[349929443,1737514241186,-150.0,0.00021917,3]
[349929444,1737514241196,-500.0,0.00021917,3]
[349929445,1737514241205,-500.0,0.00021917,3]
[349929446,1737514241215,-501.00220511,0.00021917,3]
[349929447,1737514241225,-503.75403089,0.00021917,2]
[349929448,1737514241234,-823.54,0.00021917,3]
[349929449,1737514241243,-633.67,0.00021917,3]
[349929450,1737514241253,-591.4019557,0.00021917,3]
[349929451,1737514241263,-500.0,0.00021917,3]
[349929452,1737514241272,-500.0,0.00021917,3]
[349929453,1737514241283,-500.0,0.00021917,3]
[349929454,1737514241294,-673.67,0.00021917,3]
[349929455,1737514241304,-515.91333958,0.00021917,3]
[349929456,1737514241313,-500.0,0.00021917,3]
[349929457,1737514241323,-500.0,0.00021917,3]
[349929458,1737514241332,-500.0,0.00021917,3]
[349929459,1737514241342,-500.0,0.00021917,3]
[349929460,1737514241351,-156.305979,0.00021917,2]
[349929461,1737514241360,-500.0,0.00021917,3]
[349929462,1737514241370,-153.33739,0.00021917,2]
[349929463,1737514241379,-500.0,0.00021917,3]
[349929464,1737514241388,-575.51,0.00021917,3]
[349929465,1737514241398,-616.33924865,0.00021917,3]
[349929466,1737514241407,-500.0,0.00021917,3]
[349929467,1737514241417,-500.0,0.00021917,3]
[349929468,1737514241427,-507.41597421,0.00021917,3]
[349929469,1737514241436,-525.20496828,0.00021917,3]
[349929470,1737514241446,-500.0,0.00021917,3]
[349929471,1737514241456,-500.0,0.00021917,3]
[349929472,1737514241468,-510.49414021,0.00021917,3]
[349929473,1737514241478,-506.3705738,0.00021917,3]
[349929474,1737514241488,-511.23252387,0.00021917,3]
[349929475,1737514241498,-528.05699352,0.00021917,3]
[349929476,1737514241507,-500.0,0.00021917,3]
[349929477,1737514241517,-500.0,0.00021917,3]
[349929478,1737514241527,-1066.29,0.00021917,3]
[349929479,1737514241537,-500.0,0.00021917,3]
[349929480,1737514241547,-1046.97,0.00021917,3]
[349929481,1737514241560,-761.57,0.00021917,3]
[349929482,1737514241570,-500.0,0.00021917,3]
[349929483,1737514241580,-517.86894831,0.00021917,3]
[349929484,1737514241589,-155.2676,0.00021917,2]
[349929485,1737514241599,-500.0,0.00021917,3]
[349929486,1737514241609,-500.0,0.00021917,3]
[349929487,1737514241619,-500.0,0.00021917,3]
[349929488,1737514241629,-500.0,0.00021917,3]
[349929489,1737514241639,-500.0,0.00021917,3]
[349929490,1737514241650,-500.0,0.00021917,3]
[349929491,1737514241660,-500.0,0.00021917,3]
[349929492,1737514241670,-500.0,0.00021917,3]
[349929493,1737514241679,-500.0,0.00021917,3]
[349929494,1737514241689,-504.36270664,0.00021917,3]
[349929495,1737514241699,-665.29,0.00021917,3]
[349929496,1737514241709,-152.245555,0.00021917,2]
[349929497,1737514241722,-500.0,0.00021917,3]
[349929498,1737514241732,-500.0,0.00021917,3]